bitfinex/quotes_BTCUSD_20250512
["timestamp","ask_amount","ask_price","bid_price","bid_amount"]
[1747087759010,0.29119807,102600.0,102590.0,1.44240653]
[1747087760537,0.29119807,102600.0,102590.0,1.25172653]
[1747087760754,0.75643713,102600.0,102590.0,0.001]
[1747087760996,0.76618371,102600.0,102590.0,0.21544526]
[1747087761204,0.56150536,102600.0,102590.0,0.22519213]
[1747087762074,0.56250536,102600.0,102590.0,0.22419213]
[1747087764715,0.57225118,102600.0,102590.0,0.22419213]
[1747087765553,0.58199767,102600.0,102590.0,0.22419213]
[1747087766638,0.59174425,102600.0,102590.0,0.22419213]
[1747087767452,0.29219807,102600.0,102590.0,0.3080562]
[1747087767635,0.29219807,102600.0,102590.0,0.32004643]
[1747087767765,0.29219807,102600.0,102590.0,0.51072643]
[1747087768183,0.29219807,102600.0,102590.0,0.91072643]
[1747087770939,0.02518347,102600.0,102590.0,1.25072643]
[1747087771142,0.02518347,102600.0,102590.0,1.34658073]
[1747087771556,0.00898347,102600.0,102590.0,1.34658073]
[1747087774215,0.00898347,102600.0,102590.0,1.37632158]
[1747087775872,0.00898347,102600.0,102590.0,1.37732158]
[1747087776673,0.00798347,102600.0,102590.0,1.37732158]
[1747087779750,0.00798347,102600.0,102590.0,1.39332158]
[1747087780011,0.00798347,102600.0,102590.0,1.67188496]
[1747087780429,0.00798347,102600.0,102590.0,1.70113996]
[1747087781065,0.00798347,102600.0,102590.0,1.45032536]
[1747087781288,0.00798347,102600.0,102590.0,1.44932536]
[1747087781531,0.00798347,102600.0,102590.0,1.45432536]
[1747087784374,0.00798347,102600.0,102590.0,1.49012228]
[1747087784375,0.04008347,102600.0,102590.0,1.49012228]
[1747087784592,0.04008347,102600.0,102590.0,1.25572643]
[1747087784766,0.29089807,102600.0,102590.0,1.44632643]
[1747087786575,0.04008347,102600.0,102590.0,1.44632643]
[1747087787944,0.29089807,102600.0,102590.0,1.44632643]
[1747087788155,0.29089807,102600.0,102590.0,1.25572643]
[1747087788626,0.5612046,102600.0,102590.0,1.25572643]
[1747087788855,0.55145849,102600.0,102590.0,0.85572643]
[1747087789313,0.55145849,102600.0,102590.0,1.25572643]
[1747087789524,0.55145849,102600.0,102590.0,0.91572643]
[1747087789771,0.74639026,102600.0,102590.0,0.92547339]
[1747087790004,0.75613694,102600.0,102590.0,0.005]
[1747087790290,0.74639083,102600.0,102590.0,0.005]
[1747087790958,0.21444441,102590.0,102580.0,0.75481408]
[1747087791171,0.50680588,102590.0,102580.0,0.7645619]
[1747087791369,0.50368477,102590.0,102580.0,0.7645619]
[1747087791776,0.50368477,102590.0,102580.0,0.75481408]
[1747087791777,0.51343183,102590.0,102580.0,0.75481408]
[1747087792034,0.50368477,102590.0,102580.0,0.76456199]
[1747087792301,0.50368477,102590.0,102580.0,0.77430981]
[1747087792526,0.50368477,102590.0,102580.0,0.76556199]
[1747087792778,0.51343173,102590.0,102580.0,0.76556199]
[1747087793412,0.51343173,102590.0,102580.0,0.77530981]
[1747087793559,0.51343173,102590.0,102580.0,0.76556199]
[1747087793766,0.50368477,102590.0,102580.0,0.77530981]
[1747087794350,0.4939379,102590.0,102580.0,0.77530981]
[1747087794542,0.50368477,102590.0,102580.0,0.77530981]
[1747087794905,0.4939379,102590.0,102580.0,1.17530981]
[1747087795107,0.50368467,102590.0,102580.0,1.17530981]
[1747087796198,0.28924045,102590.0,102580.0,1.17530981]
[1747087796413,0.28924045,102590.0,102580.0,1.23314358]
[1747087798657,0.28924045,102590.0,102580.0,1.17530981]
[1747087800764,0.28924045,102590.0,102580.0,0.77530981]
[1747087801014,0.51343268,102590.0,102580.0,0.1916]
[1747087801235,0.50368524,102590.0,102580.0,0.38656977]
[1747087801486,0.51343258,102590.0,102580.0,0.40606645]
[1747087801755,0.50368515,102590.0,102580.0,0.41581455]
[1747087801933,0.51343249,102590.0,102580.0,0.40606645]
[1747087802207,0.5134324,102590.0,102580.0,0.41581455]
[1747087802424,0.50368515,102590.0,102580.0,0.42556237]
[1747087802645,0.5134324,102590.0,102580.0,0.41581455]
[1747087803033,0.52317993,102590.0,102580.0,0.40606654]
[1747087803207,0.50368515,102590.0,102580.0,0.42556265]
[1747087803659,0.49393809,102590.0,102580.0,0.4353099]
[1747087803833,0.50368505,102590.0,102580.0,0.4353099]
[1747087805613,0.50368505,102590.0,102580.0,0.42556208]
[1747087805819,0.49393809,102590.0,102580.0,0.4353099]
[1747087806156,0.49393809,102590.0,102580.0,0.42556208]
[1747087806390,0.50368515,102590.0,102580.0,0.39631806]
[1747087806588,0.50368515,102590.0,102580.0,0.41581398]
[1747087806786,0.50368515,102590.0,102580.0,0.40606607]
[1747087807003,0.51343249,102590.0,102580.0,0.1916]
[1747087807243,0.5185345,102590.0,102580.0,0.01074848]
[1747087807487,0.5185345,102590.0,102580.0,0.001]
[1747087807713,0.8652034,102590.0,102580.0,0.001]
[1747087808440,0.24656616,102580.0,102570.0,0.21448693]
[1747087808641,0.76769119,102580.0,102570.0,0.20473769]
[1747087808777,0.77420593,102580.0,102570.0,0.21448693]
[1747087809217,0.50389465,102580.0,102570.0,0.28037952]
[1747087809411,0.51364275,102580.0,102570.0,0.29012838]
[1747087809620,0.51364275,102580.0,102570.0,0.28037962]
[1747087809822,0.51364275,102580.0,102570.0,0.22423608]
[1747087810207,0.49514674,102580.0,102570.0,0.23398513]
[1747087810397,0.50489456,102580.0,102570.0,0.24373409]
[1747087810842,0.51464257,102580.0,102570.0,0.23398513]
[1747087811921,0.51464257,102580.0,102570.0,0.22423608]
[1747087812268,0.51464257,102580.0,102570.0,0.23398513]
[1747087812778,0.29042934,102580.0,102570.0,0.23378007]
[1747087813021,0.29042934,102580.0,102570.0,0.24352884]
[1747087814170,0.29042934,102580.0,102570.0,0.23378007]
[1747087814381,0.0305,102570.0,102560.0,0.7469492]
[1747087814603,0.2813146,102570.0,102560.0,0.7566992]
[1747087814819,0.28773942,102570.0,102560.0,0.7566992]
[1747087816949,0.28773942,102570.0,102560.0,0.7576992]
[1747087817282,0.28773942,102570.0,102560.0,0.3576992]
[1747087821030,0.00642482,102570.0,102560.0,0.4535535]
[1747087821211,0.00642482,102570.0,102560.0,0.4686535]
[1747087821422,0.00642482,102570.0,102560.0,0.8686535]
[1747087823883,0.00642482,102570.0,102560.0,0.8535535]
[1747087827368,0.25723942,102570.0,102560.0,0.8535535]
[1747087827589,0.28963942,102570.0,102560.0,0.4535535]
[1747087829437,0.03882482,102570.0,102560.0,0.4535535]
[1747087829656,0.28963942,102570.0,102560.0,0.4535535]
[1747087829864,0.27323942,102570.0,102560.0,0.4535535]
[1747087830085,0.00642482,102570.0,102560.0,0.4535535]
[1747087830514,0.00642482,102570.0,102560.0,0.4685535]
[1747087831562,0.00642482,102570.0,102560.0,0.8685535]
[1747087831976,0.00642482,102570.0,102560.0,0.9246758]
[1747087832394,0.00642482,102570.0,102560.0,0.8685535]
[1747087834108,0.00642482,102570.0,102560.0,0.8851535]
[1747087834524,0.00642482,102570.0,102560.0,0.8685535]
[1747087835685,0.00642482,102570.0,102560.0,1.2085535]
[1747087837433,0.00642482,102570.0,102560.0,1.1935535]
[1747087837643,0.27233942,102570.0,102560.0,0.7935535]
[1747087837844,0.28763942,102570.0,102560.0,0.7935535]
[1747087840381,0.00642482,102570.0,102560.0,0.7935535]
[1747087840605,0.00642482,102570.0,102560.0,0.8261535]
[1747087840847,0.00642482,102570.0,102560.0,0.85255081]
[1747087841037,0.2816146,102590.0,102580.0,0.22421408]
[1747087841207,0.2816146,102590.0,102580.0,0.32006838]
[1747087841794,0.2816146,102590.0,102580.0,0.72006838]
[1747087842616,0.2816146,102590.0,102580.0,1.25062838]
[1747087842617,0.0167,102590.0,102580.0,1.25062838]
[1747087843054,0.0167,102590.0,102580.0,1.34648268]
[1747087844064,0.02314631,102590.0,102580.0,1.34648268]
[1747087844605,0.02314631,102590.0,102580.0,1.25062838]
[1747087845884,0.28936091,102590.0,102580.0,1.25062838]
[1747087850378,0.03854631,102590.0,102580.0,1.25062838]
[1747087850601,0.00744631,102590.0,102580.0,1.29676923]
[1747087850862,0.00744631,102590.0,102580.0,1.32602923]
[1747087851298,0.00644631,102590.0,102580.0,1.32602923]
[1747087851736,0.00644631,102590.0,102580.0,1.32702923]
[1747087854599,0.00644631,102590.0,102580.0,1.10652838]
[1747087854809,0.00644631,102590.0,102580.0,1.47100838]
[1747087855002,0.27296091,102590.0,102580.0,1.47100838]
[1747087855246,0.28866091,102590.0,102580.0,1.47100838]
[1747087855425,0.27296091,102590.0,102580.0,1.47100838]
[1747087855627,0.02214631,102590.0,102580.0,1.47100838]
[1747087856111,0.03784631,102590.0,102580.0,1.47100838]
[1747087857735,0.02214631,102590.0,102580.0,1.47100838]
[1747087860961,0.02214631,102590.0,102580.0,1.28068838]
[1747087861147,0.28906091,102590.0,102580.0,1.09032838]
[1747087861373,0.30855474,102590.0,102580.0,0.91142838]
[1747087861537,0.3183017,102590.0,102580.0,0.41557408]
[1747087861751,0.29880759,102590.0,102580.0,0.41557408]
[1747087862410,0.28906091,102590.0,102580.0,0.41557408]
[1747087864808,0.03824631,102590.0,102580.0,0.51142838]
[1747087864983,0.00644631,102590.0,102580.0,0.85142838]
[1747087865182,0.00644631,102590.0,102580.0,0.86752838]
[1747087865410,0.00644631,102590.0,102580.0,1.37988268]
[1747087865818,0.00644631,102590.0,102580.0,1.28402838]
[1747087866602,0.00644631,102590.0,102580.0,1.29856923]
[1747087873913,0.00644631,102590.0,102580.0,1.25142838]
[1747087874109,0.00644631,102590.0,102580.0,1.86278838]
[1747087874587,0.00644631,102590.0,102580.0,1.87928838]
[1747087874817,0.00644631,102590.0,102580.0,1.99094268]
[1747087874962,0.00644631,102590.0,102580.0,2.00548353]
[1747087875788,0.00644631,102590.0,102580.0,2.03474253]
[1747087876944,0.00644631,102590.0,102580.0,1.93888823]
[1747087878802,0.00644631,102590.0,102580.0,2.18970283]
[1747087880035,0.00644631,102590.0,102580.0,1.93888823]
[1747087885616,0.00644631,102590.0,102580.0,1.73288823]
[1747087885837,0.00644631,102590.0,102580.0,1.90646823]
[1747087886080,0.00644631,102590.0,102580.0,1.51148738]
[1747087886081,0.03724631,102590.0,102580.0,1.51148738]
[1747087886345,0.06143098,102590.0,102580.0,1.70160738]
[1747087886554,0.03724631,102590.0,102580.0,1.49168738]
[1747087886783,0.28806091,102590.0,102580.0,0.93234838]
[1747087887019,0.28806091,102590.0,102580.0,1.12242838]
[1747087887249,0.28806091,102590.0,102580.0,1.46242838]
[1747087887468,0.29780768,102590.0,102580.0,1.12242838]
[1747087887706,0.28806091,102590.0,102580.0,1.46242838]
[1747087888886,0.31730208,102590.0,102580.0,0.75533408]
[1747087889099,0.30755474,102590.0,102580.0,0.75533408]
[1747087889307,0.29780768,102590.0,102580.0,0.75533408]
[1747087889692,0.3173017,102590.0,102580.0,0.75533408]
[1747087890152,0.32704904,102590.0,102580.0,0.40558626]
[1747087890352,0.50250646,102590.0,102580.0,0.19596977]
[1747087890562,0.50250646,102590.0,102580.0,0.20571825]
[1747087890768,0.49275912,102590.0,102580.0,0.01074848]
[1747087891415,0.49275912,102590.0,102580.0,0.001]
[1747087891611,1.14854333,102590.0,102580.0,0.001]
[1747087891820,0.89872873,102590.0,102580.0,0.001]
[1747087892263,0.0313,102580.0,102570.0,0.2047374]
[1747087892478,0.30161109,102580.0,102570.0,0.23398418]
[1747087892705,0.31787021,102580.0,102570.0,0.23398418]
[1747087893132,0.04054886,102570.0,102560.0,0.31721919]
[1747087893345,0.55192721,102570.0,102560.0,0.34646901]
[1747087893552,0.55842852,102570.0,102560.0,0.1660594]
[1747087893768,0.53893099,102570.0,102560.0,0.1660594]
[1747087894191,0.56311566,102570.0,102560.0,0.1660594]
[1747087894404,0.53893099,102570.0,102560.0,0.1660594]
[1747087895464,0.53893099,102570.0,102560.0,0.1670594]
[1747087895957,0.53893099,102570.0,102560.0,0.1680594]
[1747087899574,0.28811639,102570.0,102560.0,0.4541137]
[1747087899795,0.02180179,102570.0,102560.0,0.4541137]
[1747087900017,0.00650179,102570.0,102560.0,0.6441937]
[1747087900204,0.00650179,102570.0,102560.0,1.0002937]
[1747087900366,0.00650179,102570.0,102560.0,1.096148]
[1747087900558,0.00650179,102570.0,102560.0,1.4002937]
[1747087900764,0.00650179,102570.0,102560.0,1.4450627]
[1747087901180,0.2508146,102580.0,102570.0,0.56423594]
[1747087901398,0.25729679,102580.0,102570.0,0.66009024]
[1747087902011,0.25729679,102580.0,102570.0,1.06009024]
[1747087902578,0.25829679,102580.0,102570.0,1.06009024]
[1747087903606,0.00748219,102580.0,102570.0,1.07659024]
[1747087903775,0.00748219,102580.0,102570.0,1.18764454]
[1747087904229,0.00748219,102580.0,102570.0,1.09179024]
[1747087905218,0.00748219,102580.0,102570.0,1.10633109]
[1747087910685,0.00648219,102580.0,102570.0,1.10633109]
[1747087911064,0.26616101,102600.0,102590.0,0.56419223]
[1747087911279,0.01534641,102600.0,102590.0,1.03996653]
[1747087911480,0.26616101,102600.0,102590.0,1.03996653]
[1747087911913,0.26616101,102600.0,102590.0,1.46922753]
[1747087912345,0.26616101,102600.0,102590.0,1.47022753]
[1747087912470,0.26616101,102600.0,102590.0,1.47122753]
[1747087914597,0.26616101,102600.0,102590.0,1.44196653]
[1747087916047,0.28266101,102600.0,102590.0,1.44196653]
[1747087916852,0.26616101,102600.0,102590.0,1.44196653]
[1747087917102,0.00014641,102600.0,102590.0,1.45726653]
[1747087917810,0.00014641,102600.0,102590.0,1.47296653]
[1747087918061,0.00014641,102600.0,102590.0,1.48750738]
[1747087918483,0.00014641,102600.0,102590.0,1.58336168]
[1747087919205,0.00566859,102600.0,102590.0,1.86057359]
[1747087919485,0.00566859,102600.0,102590.0,2.35391159]
[1747087919700,0.00566859,102600.0,102590.0,2.28939859]
[1747087920353,0.00566859,102600.0,102590.0,1.98553928]
[1747087920574,0.00566859,102600.0,102590.0,1.73472468]
[1747087921482,0.00566859,102600.0,102590.0,1.58336168]
[1747087921702,0.00566859,102600.0,102590.0,1.99285168]
[1747087922436,0.00566859,102600.0,102590.0,2.24366628]
[1747087922655,0.00566859,102600.0,102590.0,2.28006359]
[1747087922865,0.00014641,102600.0,102590.0,2.28006359]
[1747087923381,0.00014641,102600.0,102590.0,2.65266359]
[1747087923622,0.00014641,102600.0,102590.0,2.65166359]
[1747087923798,0.00014641,102600.0,102590.0,2.65466359]
[1747087924319,0.00014641,102600.0,102590.0,2.65366359]
[1747087924568,0.00014641,102600.0,102590.0,2.65566359]
[1747087928680,0.00014641,102600.0,102590.0,2.65956359]
[1747087929659,0.00014641,102600.0,102590.0,1.94808083]
[1747087929862,0.00014641,102600.0,102590.0,1.44154653]
[1747087930061,0.11181301,102600.0,102590.0,1.48122653]
[1747087930348,0.08458813,102600.0,102590.0,1.82122653]
[1747087930777,0.08458813,102600.0,102590.0,1.83576738]
[1747087930979,0.08458813,102600.0,102590.0,1.45608738]
[1747087931347,0.08458813,102600.0,102590.0,1.83572738]
[1747087933235,0.10108813,102600.0,102590.0,1.83572738]
[1747087933441,0.36840273,102600.0,102590.0,1.83568738]
[1747087933920,0.36840273,102600.0,102590.0,1.46308738]
[1747087934165,0.36840273,102600.0,102590.0,1.44464653]
[1747087934381,0.36840273,102600.0,102590.0,1.25492653]
[1747087934614,0.36840273,102600.0,102590.0,1.44464653]
[1747087935707,0.28973613,102600.0,102590.0,1.44464653]
[1747087938691,0.03892153,102600.0,102590.0,1.44464653]
[1747087938896,0.00592153,102600.0,102590.0,1.45918738]
[1747087939102,0.00592153,102600.0,102590.0,1.48558469]
[1747087939317,0.00592153,102600.0,102590.0,1.50128469]
[1747087939531,0.00592153,102600.0,102590.0,1.61293899]
[1747087939918,0.00592153,102600.0,102590.0,1.59713899]
[1747087940120,0.00592153,102600.0,102590.0,1.50128469]
[1747087943245,0.00592153,102600.0,102590.0,1.10598469]
[1747087943472,0.00592153,102600.0,102590.0,1.45898738]
[1747087943685,0.25673613,102600.0,102590.0,1.45898738]
[1747087944138,0.28763613,102600.0,102590.0,1.45898738]
[1747087944772,0.28763613,102600.0,102590.0,1.44444653]
[1747087946042,0.28763613,102600.0,102590.0,1.86552653]
[1747087946495,0.00592153,102600.0,102590.0,1.96138083]
[1747087948867,0.00592153,102600.0,102590.0,1.97592168]
[1747087949073,0.00592153,102600.0,102590.0,1.88006738]
[1747087949276,0.28853613,102600.0,102590.0,1.67584653]
[1747087949513,0.28853613,102600.0,102590.0,1.86548653]
[1747087949731,0.28853613,102600.0,102590.0,1.67584653]
[1747087949969,0.28853613,102600.0,102590.0,1.86548653]
[1747087951064,0.02222153,102600.0,102590.0,1.86548653]
[1747087953262,0.28853613,102600.0,102590.0,1.86548653]
[1747087953497,0.03772153,102600.0,102590.0,1.86548653]
[1747087953717,0.28853613,102600.0,102590.0,1.86548653]
[1747087955256,0.28853613,102600.0,102590.0,1.67584653]
[1747087957413,0.28853613,102600.0,102590.0,1.25476653]
[1747087971368,0.02222153,102600.0,102590.0,1.25476653]
[1747087971623,0.00592153,102600.0,102590.0,1.25476653]
[1747087971851,0.02172153,102600.0,102590.0,1.25476653]
[1747087972068,0.27253613,102600.0,102590.0,1.25476653]
[1747087973179,0.25673613,102600.0,102590.0,1.35062083]
[1747087973395,0.00592153,102600.0,102590.0,1.27126653]
[1747087973618,0.00592153,102600.0,102590.0,1.30090738]
[1747087974738,0.00592153,102600.0,102590.0,2.06594629]
[1747087974964,0.00014641,102600.0,102590.0,2.06594629]
[1747087975178,0.00014641,102600.0,102590.0,2.17180059]
[1747087975828,0.00014641,102600.0,102590.0,2.16680059]
[1747087976268,0.00014641,102600.0,102590.0,2.17380059]
[1747087978968,0.00014641,102600.0,102590.0,2.54640059]
[1747087979973,0.00014641,102600.0,102590.0,2.09586599]
[1747087980184,0.00014641,102600.0,102590.0,1.96056168]
[1747087980402,0.00014641,102600.0,102590.0,2.09879768]
[1747087980650,0.00014641,102600.0,102590.0,1.58796168]
[1747087980880,0.00588913,102600.0,102590.0,1.58796168]
[1747087981344,0.00588913,102600.0,102590.0,1.77829068]
[1747087981615,0.00588913,102600.0,102590.0,1.58796168]
[1747087982625,0.00588913,102600.0,102590.0,1.91644968]
[1747087982858,0.00014641,102600.0,102590.0,1.91644968]
[1747087983370,0.00014641,102600.0,102590.0,2.16722428]
[1747087983613,0.00014641,102600.0,102590.0,1.91640968]
[1747087984298,0.00592646,102600.0,102590.0,1.62293138]
[1747087984433,0.00592646,102600.0,102590.0,1.46046738]
[1747087985518,0.00592646,102600.0,102590.0,1.47596738]
[1747087987323,0.00592646,102600.0,102590.0,1.27106738]
[1747087987528,0.02112646,102600.0,102590.0,1.46042738]
[1747087988447,0.00592646,102600.0,102590.0,1.46042738]
[1747087988658,0.00592646,102600.0,102590.0,1.55628168]
[1747087988862,0.00592646,102600.0,102590.0,1.57168168]
[1747087989152,0.00592646,102600.0,102590.0,1.58788168]
[1747087989566,0.00014641,102600.0,102590.0,1.58788168]
[1747087989767,0.00592434,102600.0,102590.0,1.58788168]
[1747087990381,0.00592434,102600.0,102590.0,1.57168168]
[1747087991100,0.00592434,102600.0,102590.0,1.55628168]
[1747087991587,0.00592434,102600.0,102590.0,1.57158168]
[1747087992038,0.00592434,102600.0,102590.0,1.99262168]
[1747087993121,0.00592434,102600.0,102590.0,1.69210738]
[1747087993357,0.03872434,102600.0,102590.0,1.88142738]
[1747087995219,0.03872434,102600.0,102590.0,2.76487829]
[1747087995220,0.00592434,102600.0,102590.0,2.76487829]
[1747087995759,0.00014641,102600.0,102590.0,2.79412929]
[1747087997311,0.00014641,102600.0,102590.0,2.51691738]
[1747087997514,0.00014641,102600.0,102590.0,1.86688653]
[1747087997720,0.01998955,102600.0,102590.0,1.86688653]
[1747087997914,0.01998955,102600.0,102590.0,1.88142738]
[1747087998282,0.01998955,102600.0,102590.0,1.86688653]
[1747087998701,0.01998955,102600.0,102590.0,1.88142738]
[1747087998917,0.03648955,102600.0,102590.0,1.88142738]
[1747087999135,0.03648955,102600.0,102590.0,2.0271097]
[1747087999372,0.03648955,102600.0,102590.0,2.04165055]
[1747088000938,0.03648955,102600.0,102590.0,1.85233055]
[1747088001151,0.28730415,102600.0,102590.0,1.4977897]
[1747088001577,0.28730415,102600.0,102590.0,1.8377897]
[1747088002824,0.28730415,102600.0,102590.0,1.67756653]
[1747088002825,0.53811875,102600.0,102590.0,1.67756653]
[1747088003052,0.03648955,102600.0,102590.0,0.91652653]
[1747088003261,0.03648955,102600.0,102590.0,1.47220384]
[1747088003705,0.00398955,102600.0,102590.0,1.48674469]
[1747088004541,0.00398955,102600.0,102590.0,1.46034738]
[1747088006215,0.00398955,102600.0,102590.0,1.27106738]
[1747088006434,0.00398955,102600.0,102590.0,1.06704653]
[1747088006435,0.28690415,102600.0,102590.0,1.06704653]
[1747088006653,0.28690415,102600.0,102590.0,1.25632653]
[1747088008133,0.03608955,102600.0,102590.0,1.25632653]
[1747088008595,0.01948955,102600.0,102590.0,1.25632653]
[1747088008794,0.00398955,102600.0,102590.0,1.25632653]
[1747088009864,0.03648955,102600.0,102590.0,1.25632653]
[1747088012041,0.03648955,102600.0,102590.0,1.67740653]
[1747088012998,0.28730415,102600.0,102590.0,1.86660653]
[1747088013664,0.03648955,102600.0,102590.0,1.86660653]
[1747088013882,0.00398955,102600.0,102590.0,1.86660653]
[1747088016386,0.00398955,102600.0,102590.0,1.88114738]
[1747088016604,0.00398955,102600.0,102590.0,1.89764738]
[1747088017264,0.00398955,102600.0,102590.0,1.93398483]
[1747088017866,0.00398955,102600.0,102590.0,1.91748483]
[1747088018521,0.03648955,102600.0,102590.0,1.86660653]
[1747088018774,0.28730415,102600.0,102590.0,1.86660653]
[1747088018961,0.03648955,102600.0,102590.0,1.86660653]
[1747088019792,0.03648955,102600.0,102590.0,1.67740653]
[1747088019980,0.03648955,102600.0,102590.0,1.86656653]
[1747088020471,0.28730415,102600.0,102590.0,1.86656653]
[1747088021241,0.28730415,102600.0,102590.0,1.48812653]
[1747088021455,0.28730415,102600.0,102590.0,1.86656653]
[1747088021974,0.03648955,102600.0,102590.0,1.86656653]
[1747088022201,0.28730415,102600.0,102590.0,1.86656653]
[1747088022707,0.03648955,102600.0,102590.0,1.86656653]
[1747088025391,0.00398955,102600.0,102590.0,1.86656653]
[1747088027155,0.01948955,102600.0,102590.0,1.86656653]
[1747088032543,0.03498955,102600.0,102590.0,1.86648653]
[1747088034409,0.28580415,102600.0,102590.0,1.67716653]
[1747088034622,0.28580415,102600.0,102590.0,1.86620653]
[1747088036832,0.28580415,102600.0,102590.0,1.48812653]
[1747088037044,0.53661875,102600.0,102590.0,1.46624653]
[1747088037221,0.28580415,102600.0,102590.0,1.46624653]
[1747088037639,0.53661875,102600.0,102590.0,1.46624653]
[1747088039432,0.53661875,102600.0,102590.0,1.04516653]
[1747088039814,0.54636448,102600.0,102590.0,1.04516653]
[1747088040232,0.53661875,102600.0,102590.0,1.04516653]
[1747088040654,0.28580415,102600.0,102590.0,1.04516653]
[1747088040854,0.54636448,102600.0,102590.0,1.44516653]
[1747088041300,0.53661875,102600.0,102590.0,1.44516653]
[1747088042146,0.28580415,102600.0,102590.0,1.44516653]
[1747088044705,0.29554988,102600.0,102590.0,1.10512653]
[1747088044915,0.5561103,102600.0,102590.0,0.42027223]
[1747088045166,0.29554988,102600.0,102590.0,0.42027223]
[1747088045379,0.28580415,102600.0,102590.0,0.42027223]
[1747088046141,0.28580415,102600.0,102590.0,0.41627223]
[1747088046770,0.28580415,102600.0,102590.0,0.41327223]
[1747088046966,0.28580415,102600.0,102590.0,0.41427223]
[1747088047362,0.28580415,102600.0,102590.0,0.41727223]
[1747088049085,0.00398955,102600.0,102590.0,1.35059866]
[1747088049305,0.00398955,102600.0,102590.0,1.26852653]
[1747088049747,0.00398955,102600.0,102590.0,1.25312653]
[1747088050197,0.00398955,102600.0,102590.0,1.28238653]
[1747088051657,0.00398955,102600.0,102590.0,1.29738653]
[1747088053710,0.00398955,102600.0,102590.0,1.32782738]
[1747088054158,0.00398955,102600.0,102590.0,1.51674738]
[1747088054369,0.00398955,102600.0,102590.0,1.50084738]
[1747088055031,0.00398955,102600.0,102590.0,1.51604738]
[1747088057158,0.00398955,102600.0,102590.0,1.50084738]
[1747088058221,0.00398955,102600.0,102590.0,1.48584738]
[1747088059531,0.00398955,102600.0,102590.0,1.50164738]
[1747088059993,0.00398955,102600.0,102590.0,1.92276738]
[1747088060933,0.00398955,102600.0,102590.0,1.54476738]
[1747088061169,0.00398955,102600.0,102590.0,1.92268738]
[1747088061587,0.00398955,102600.0,102590.0,1.90688738]
[1747088062036,0.00398955,102600.0,102590.0,1.71804738]
[1747088062266,0.00398955,102600.0,102590.0,1.90688738]
[1747088064026,0.00398955,102600.0,102590.0,1.92278738]
[1747088065259,0.00398955,102600.0,102590.0,1.90688738]
[1747088065686,0.27110415,102600.0,102590.0,1.51442653]
[1747088065861,0.28650415,102600.0,102590.0,1.89206653]
[1747088067029,0.02028955,102600.0,102590.0,1.89206653]
[1747088069660,0.03548955,102600.0,102590.0,1.89206653]
[1747088070240,0.28630415,102600.0,102590.0,1.70326653]
[1747088070443,0.28630415,102600.0,102590.0,1.89206653]
[1747088070856,0.28630415,102600.0,102590.0,1.70326653]
[1747088071038,0.28630415,102600.0,102590.0,1.86276653]
[1747088072481,0.28630415,102600.0,102590.0,1.48516653]
[1747088072702,0.28630415,102600.0,102590.0,1.67400653]
[1747088072923,0.28630415,102600.0,102590.0,1.86276653]
[1747088073857,0.55661068,102600.0,102590.0,0.62819223]
[1747088074011,0.54686457,102600.0,102590.0,0.62819223]
[1747088074222,0.55661058,102600.0,102590.0,0.62819223]
[1747088074630,0.54686457,102600.0,102590.0,0.62819223]
[1747088074836,0.28630415,102600.0,102590.0,0.62819223]
[1747088075193,0.28630415,102600.0,102590.0,0.62419223]
[1747088077051,0.28630415,102600.0,102590.0,0.22419223]
[1747088077516,0.28630415,102600.0,102590.0,0.62419223]
[1747088080529,0.28630415,102600.0,102590.0,0.22419223]
[1747088080955,0.28630415,102600.0,102590.0,0.62419223]
[1747088081177,0.27110415,102600.0,102590.0,0.62419223]
[1747088081745,0.27110415,102600.0,102590.0,0.72004653]
[1747088082141,0.28720415,102600.0,102590.0,0.72004653]
[1747088083609,0.55751087,102600.0,102590.0,0.62419232]
[1747088083807,0.55751078,102600.0,102590.0,0.63393919]
[1747088084063,0.55751087,102600.0,102590.0,0.42277919]
[1747088085102,0.54776467,102600.0,102590.0,0.42277919]
[1747088085325,0.30669618,102600.0,102590.0,0.42277919]
[1747088086063,0.29695007,102600.0,102590.0,0.42277919]
[1747088086284,0.28720415,102600.0,102590.0,0.42277919]
[1747088086678,0.29694988,102600.0,102590.0,0.42277919]
[1747088086914,0.28720415,102600.0,102590.0,0.42277919]
[1747088088125,0.28720415,102600.0,102590.0,0.82277919]
[1747088099316,0.29694988,102600.0,102590.0,0.82277919]
[1747088099964,0.01949383,102590.0,102580.0,0.20470161]
[1747088100183,0.01949383,102590.0,102580.0,0.39334161]
[1747088100184,0.51675398,102590.0,102580.0,0.39334161]
[1747088100383,0.30595693,102590.0,102580.0,0.40308971]
[1747088100798,0.30595683,102590.0,102580.0,0.41283753]
[1747088101015,0.2864631,102590.0,102580.0,0.41283753]
[1747088101208,0.29620987,102590.0,102580.0,0.41383753]
[1747088101423,0.18436114,102590.0,102580.0,0.41383753]
[1747088101623,0.0036485,102590.0,102580.0,0.50969183]
[1747088101862,0.16836114,102590.0,102580.0,0.52559183]
[1747088102584,0.16836114,102590.0,102580.0,0.86559183]
[1747088104063,0.16836114,102590.0,102580.0,1.26559183]
[1747088104619,0.0036485,102590.0,102580.0,1.28159183]
[1747088106347,0.0036485,102590.0,102580.0,1.26559183]
[1747088106958,0.0036485,102590.0,102580.0,1.28079183]
[1747088107384,0.18035905,102600.0,102590.0,0.22419223]
[1747088107598,0.34507169,102600.0,102590.0,0.22419223]
[1747088108178,0.34507169,102600.0,102590.0,0.62419223]
[1747088108722,0.36037169,102600.0,102590.0,0.62419223]
[1747088108935,0.01949383,102590.0,102580.0,0.83894316]
[1747088109150,0.21500647,102590.0,102580.0,0.83894316]
[1747088109355,0.21500637,102590.0,102580.0,1.23894316]
[1747088109563,0.20525941,102590.0,102580.0,0.83894316]
[1747088109837,0.21500637,102590.0,102580.0,0.83894316]
[1747088110052,0.23450077,102590.0,102580.0,0.56419763]
[1747088110259,0.39921341,102590.0,102580.0,0.41283763]
[1747088110468,0.39921341,102590.0,102580.0,0.41383763]
[1747088110648,0.39921332,102590.0,102580.0,0.41383763]
[1747088110852,0.39921322,102590.0,102580.0,0.41383763]
[1747088111057,0.40896047,102590.0,102580.0,0.41383763]
[1747088111469,0.36997196,102590.0,102580.0,0.41383763]
[1747088111706,0.20525932,102590.0,102580.0,0.41383763]
[1747088111919,0.21500609,102590.0,102580.0,0.41383763]
[1747088112323,0.19551264,102590.0,102580.0,0.41383763]
[1747088112538,0.20525941,102590.0,102580.0,0.41383763]
[1747088113940,0.21500647,102590.0,102580.0,0.41383763]
[1747088114142,0.20525941,102590.0,102580.0,0.41383763]
[1747088115090,0.19551264,102590.0,102580.0,0.41383763]
[1747088115516,0.18021264,102590.0,102580.0,0.41383763]
[1747088116018,0.18021264,102590.0,102580.0,0.50969193]
[1747088116383,0.18021264,102590.0,102580.0,0.90969193]
[1747088116977,0.0155,102590.0,102580.0,0.90969193]
[1747088117217,0.18021264,102590.0,102580.0,0.90969193]
[1747088119024,0.16471264,102590.0,102580.0,0.90969193]
[1747088119437,0.18021264,102590.0,102580.0,0.90969193]
[1747088120473,0.16471264,102590.0,102580.0,0.90969193]
[1747088120882,0.18001264,102590.0,102580.0,0.90969193]